bitfinex/quotes_BTCUSD_20220202
["timestamp","ask_amount","ask_price","bid_price","bid_amount"]
[1643845091961,0.00078218,36902.0,36896.0,0.00220587]
[1643845092762,0.75825877,36904.0,36896.0,0.00220587]
[1643845092763,0.75825877,36904.0,36896.0,0.00142357]
[1643845092967,0.00078218,36902.0,36896.0,0.00220587]
[1643845093164,0.06854518,36902.0,36896.0,0.00220587]
[1643845093570,0.06854518,36902.0,36899.0,0.05]
[1643845093906,0.34926042,36904.0,36899.0,0.05]
[1643845094306,0.117758,36904.0,36899.0,0.05]
[1643845094513,0.26641369,36903.0,36900.0,0.08777651]
[1643845094707,0.117758,36904.0,36901.0,0.27335584]
[1643845094906,0.117758,36904.0,36900.0,0.08786757]
[1643845095108,0.08320138,36903.0,36900.0,0.08786757]
[1643845095306,0.08320138,36903.0,36900.0,0.08777651]
[1643845095506,0.15096438,36903.0,36900.0,0.08777651]
[1643845095706,0.20096438,36903.0,36900.0,0.08777651]
[1643845095906,0.117763,36903.0,36900.0,0.36484979]
[1643845096709,0.11854527,36903.0,36900.0,0.36484979]
[1643845097509,0.05078227,36903.0,36900.0,0.36484979]
[1643845097755,0.00078227,36903.0,36900.0,0.36484979]
[1643845097957,0.00078227,36903.0,36900.0,0.36494085]
[1643845098855,0.05,36904.0,36900.0,0.36494085]
[1643845099055,0.00078227,36903.0,36900.0,0.36494085]
[1643845099455,0.00078227,36903.0,36900.0,0.36484979]
[1643845099655,0.00078227,36903.0,36900.0,0.41484979]
[1643845100056,0.05,36904.0,36900.0,0.41484979]
[1643845100258,0.00078227,36903.0,36900.0,0.41484979]
[1643845100457,0.06854127,36903.0,36900.0,0.41484979]
[1643845100858,0.11854127,36903.0,36900.0,0.41484979]
[1643845101260,0.067759,36903.0,36900.0,0.36484979]
[1643845101501,0.11854127,36903.0,36900.0,0.36484979]
[1643845101900,0.11854127,36903.0,36900.0,0.36494085]
[1643845102302,0.06854127,36903.0,36900.0,0.36494085]
[1643845102603,0.11854127,36903.0,36900.0,0.36494085]
[1643845103204,0.06854127,36903.0,36900.0,0.36494085]
[1643845103402,0.11854127,36903.0,36900.0,0.36494085]
[1643845103604,0.117759,36903.0,36900.0,0.36494085]
[1643845103806,0.11854127,36903.0,36900.0,0.36494085]
[1643845104805,0.067759,36903.0,36900.0,0.36494085]
[1643845105005,0.11854127,36903.0,36900.0,0.36494085]
[1643845105455,0.21939927,36903.0,36900.0,9.106e-05]
[1643845105658,0.21939927,36903.0,36899.0,9.106e-05]
[1643845105659,0.350564,36902.0,36899.0,9.106e-05]
[1643845105855,0.0542,36901.0,36899.0,9.106e-05]
[1643845106255,0.067766,36900.0,36898.0,0.00078237]
[1643845106457,0.121966,36900.0,36898.0,0.00078237]
[1643845106656,0.117766,36900.0,36898.0,0.00078237]
[1643845106855,0.05,36900.0,36898.0,0.07438637]
[1643845107054,0.44063197,36901.0,36898.0,0.00078237]
[1643845107255,0.44063197,36901.0,36897.0,0.05009106]
[1643845107455,0.44063197,36901.0,36897.0,0.05087343]
[1643845107854,0.067767,36900.0,36897.0,0.05087343]
[1643845108455,0.117767,36900.0,36897.0,0.05009106]
[1643845108653,0.067767,36900.0,36897.0,0.05087343]
[1643845108896,0.117767,36900.0,36897.0,0.05087343]
[1643845109201,0.07489311,36899.0,36897.0,0.05087343]
[1643845109398,0.117767,36900.0,36897.0,0.05078237]
[1643845109597,0.36140924,36900.0,36896.0,0.00142357]
[1643845109798,0.36140924,36900.0,36896.0,0.00220594]
[1643845109999,0.42917724,36900.0,36897.0,0.05]
[1643845110199,0.185535,36900.0,36897.0,0.05009106]
[1643845111000,0.185535,36900.0,36897.0,0.00087343]
[1643845111201,0.117767,36900.0,36897.0,0.00087343]
[1643845112000,0.117767,36900.0,36894.0,0.05020594]
[1643845112200,0.25229712,36896.0,36894.0,0.14412418]
[1643845112654,0.25229712,36896.0,36894.0,0.05020594]
[1643845112855,0.59418997,36896.0,36894.0,0.00020594]
[1643845113258,0.400564,36895.0,36894.0,0.00020594]
[1643845113456,0.439764,36895.0,36894.0,0.00020594]
[1643845113655,0.63206829,36895.0,36894.0,0.00020594]
[1643845113855,0.28150429,36895.0,36894.0,0.00020594]
[1643845114755,0.18150429,36895.0,36894.0,0.00020594]
[1643845115355,0.43130908,36895.0,36894.0,0.00020594]
[1643845115556,0.48536008,36895.0,36894.0,0.00020594]
[1643845115756,0.58536008,36895.0,36894.0,0.00020594]
[1643845115955,0.53536008,36895.0,36894.0,0.00020594]
[1643845116402,0.28150429,36895.0,36894.0,0.00020594]
[1643845116603,0.1892,36895.0,36894.0,0.00020594]
[1643845116803,0.0892,36895.0,36894.0,0.00020594]
[1643845118810,0.067772,36896.0,36894.0,0.05020594]
[1643845119013,0.00078166,36900.0,36894.0,0.05020594]
[1643845119307,0.26671706,36903.0,36899.0,0.05]
[1643845119512,0.191254,36904.0,36901.0,0.05]
[1643845119708,0.1235,36904.0,36901.0,0.35893282]
[1643845119907,0.01923848,36906.0,36902.0,0.09108196]
[1643845120156,0.01923848,36906.0,36902.0,0.08608196]
[1643845120356,0.350564,36905.0,36902.0,0.08608196]
[1643845120557,0.2200857,36906.0,36902.0,0.08608196]
[1643845120756,0.28862036,36906.0,36898.0,0.05]
[1643845120957,0.28862036,36906.0,36897.0,0.067758]
[1643845120958,0.22086736,36906.0,36897.0,0.067758]
[1643845121178,0.43715188,36906.0,36896.0,0.05]
[1643845121358,0.53715188,36906.0,36895.0,0.00078188]
[1643845121658,0.2,36906.0,36899.0,0.05]
[1643845121858,0.2,36906.0,36898.0,0.24583498]
[1643845121859,0.00078169,36902.0,36898.0,0.24583498]
[1643845122061,0.00078169,36902.0,36899.0,0.05]
[1643845122861,0.0001,36906.0,36901.0,0.05]
[1643845123069,0.0001,36906.0,36905.0,0.35]
[1643845123262,0.0001,36906.0,36905.0,0.3499]
[1643845123901,0.0001,36906.0,36905.0,0.61840846]
[1643845124103,0.0001,36906.0,36905.0,0.31840846]
[1643845124304,0.0001,36906.0,36905.0,0.42297439]
[1643845124606,0.0001,36906.0,36905.0,0.49071839]
[1643845124803,0.0002,36906.0,36905.0,0.49071839]
[1643845125205,0.0003,36906.0,36905.0,0.44081839]
[1643845125406,0.0003,36906.0,36905.0,0.49071839]
[1643845126705,0.0004,36906.0,36905.0,0.49071839]
[1643845127307,0.0005,36906.0,36905.0,0.49071839]
[1643845127751,0.0006,36906.0,36905.0,0.49071839]
[1643845128250,0.0007,36906.0,36905.0,0.49071839]
[1643845128852,0.0007,36906.0,36905.0,0.44081839]
[1643845129053,0.0007,36906.0,36905.0,0.49071839]
[1643845129254,0.0008,36906.0,36905.0,0.44081839]
[1643845129655,0.0009,36906.0,36905.0,0.44081839]
[1643845130256,0.001,36906.0,36905.0,0.44081839]
[1643845138465,0.001,36906.0,36905.0,0.067744]
[1643845138666,0.001,36906.0,36899.0,0.1145]
[1643845138903,0.001,36906.0,36898.0,0.503]
[1643845139304,0.0001,36902.0,36898.0,0.503]
[1643845139506,0.0001,36902.0,36899.0,0.25287384]
[1643845139703,0.0001,36902.0,36900.0,0.07579719]
[1643845139903,0.00078169,36902.0,36900.0,0.07579719]
[1643845140106,0.00088169,36902.0,36900.0,0.07579719]
[1643845140305,0.00088169,36902.0,36900.0,0.14355019]
[1643845140905,0.001,36906.0,36900.0,0.14355019]
[1643845141111,0.00078168,36903.0,36900.0,0.14355019]
[1643845141505,0.0001,36901.0,36900.0,0.14355019]
[1643845141706,0.00088168,36903.0,36900.0,0.19345019]
[1643845141906,0.00088168,36903.0,36902.0,0.0499]
[1643845142107,0.0001,36903.0,36902.0,0.0499]
[1643845142408,0.00088168,36903.0,36902.0,0.0499]
[1643845142847,0.00098168,36903.0,36902.0,0.0499]
[1643845143347,0.0002,36903.0,36902.0,0.0499]
[1643845143548,0.0003,36903.0,36902.0,0.0499]
[1643845143948,0.0003,36903.0,36900.0,0.14355019]
[1643845144249,0.0003,36903.0,36902.0,0.5999]
[1643845144449,0.0003,36903.0,36900.0,0.14355019]
[1643845144749,0.00118168,36903.0,36902.0,0.367748]
[1643845144952,0.0011067,36903.0,36902.0,1.02041976]
[1643845145152,0.0011067,36903.0,36902.0,1.07041976]
[1643845145153,0.0012067,36903.0,36902.0,1.07041976]
[1643845145349,0.0012067,36903.0,36902.0,1.45393009]
[1643845145549,0.0012067,36903.0,36902.0,1.20393009]
[1643845145753,0.00052502,36903.0,36902.0,1.20393009]
[1643845145949,0.00052502,36903.0,36902.0,1.19893009]
[1643845146407,0.00062502,36903.0,36902.0,1.25313009]
[1643845146805,0.00062502,36903.0,36902.0,1.70313009]
[1643845147408,0.00072502,36903.0,36902.0,1.75323009]
[1643845147606,0.00072502,36903.0,36902.0,1.80313009]
[1643845147809,0.001,36906.0,36903.0,0.00733766]
[1643845148008,0.001,36906.0,36905.0,0.6999]
[1643845148207,0.0001,36917.0,36905.0,1.37798854]
[1643845148412,0.19364616,36919.0,36915.0,0.0499]
[1643845148608,0.19364616,36919.0,36916.0,0.0498]
[1643845148807,0.0002,36918.0,36917.0,0.08669273]
[1643845149208,0.0002,36918.0,36917.0,0.15441373]
[1643845150458,0.0002,36918.0,36917.0,0.15431373]
[1643845151156,0.0002,36918.0,36917.0,0.20411373]
[1643845151557,0.0003,36918.0,36917.0,0.20411373]
[1643845151955,0.0004,36918.0,36917.0,0.20411373]
[1643845152356,0.0004,36918.0,36917.0,0.15431373]
[1643845152556,0.0005,36918.0,36917.0,0.15431373]
[1643845152958,0.0006,36918.0,36917.0,0.15431373]
[1643845153558,0.0007,36918.0,36917.0,0.20411373]
[1643845153999,0.0008,36918.0,36917.0,0.20411373]
[1643845154400,0.0009,36918.0,36917.0,0.20411373]
[1643845154701,0.0009,36918.0,36917.0,0.40431373]
[1643845154905,0.001,36918.0,36917.0,0.15431373]
[1643845155103,0.001,36918.0,36917.0,0.20851373]
[1643845155701,0.0008,36918.0,36917.0,0.25831373]
[1643845156202,0.0008,36918.0,36917.0,0.67831373]
[1643845156702,0.0008,36918.0,36917.0,0.72831373]
[1643845157301,0.0008,36918.0,36917.0,0.67831373]
[1643845157501,0.0008,36918.0,36917.0,0.72831373]
[1643845158858,0.0008,36918.0,36917.0,0.67831373]
[1643845158859,0.001,36918.0,36917.0,0.67831373]
[1643845159060,0.001,36918.0,36917.0,0.62851373]
[1643845159260,0.001,36918.0,36917.0,0.57431373]
[1643845159459,0.001,36918.0,36917.0,0.08159273]
[1643845160268,0.001,36918.0,36915.0,0.135432]
[1643845160269,0.26863725,36917.0,36915.0,0.135432]
[1643845160465,0.26863725,36917.0,36912.0,0.42]
[1643845160769,0.0002,36913.0,36912.0,0.42]
[1643845161165,0.0002,36913.0,36909.0,0.135455]
[1643845161414,0.07378784,36912.0,36909.0,0.135455]
[1643845161903,0.0002,36910.0,36906.0,0.185466]
[1643845162101,0.0002,36907.0,36902.0,0.20022]
[1643845162301,0.0542,36910.0,36902.0,0.267966]
[1643845162502,0.0002,36903.0,36902.0,0.067746]
[1643845162701,0.0002,36903.0,36900.0,0.555486]
[1643845162702,0.23479487,36902.0,36900.0,0.555486]
[1643845162902,0.0002,36901.0,36899.0,0.503]
[1643845163105,0.08123444,36901.0,36899.0,0.503]
[1643845164102,0.0002,36901.0,36899.0,0.503]
[1643845164502,0.0002,36901.0,36899.0,0.5528]
[1643845164703,0.0002,36901.0,36899.0,0.80823868]
[1643845164901,0.0002,36901.0,36899.0,0.5528]
[1643845165359,0.0002,36901.0,36899.0,0.503]
[1643845165756,0.0002,36901.0,36900.0,0.31430768]
[1643845166359,0.00078234,36902.0,36900.0,0.69924032]
[1643845166562,0.00078234,36902.0,36901.0,0.34622352]
[1643845167258,0.0002,36905.0,36901.0,0.34622352]
[1643845167459,0.0002,36905.0,36902.0,0.067735]
[1643845167759,0.0002,36905.0,36902.0,0.12869559]
[1643845167957,0.0002,36905.0,36904.0,0.08165906]
[1643845168162,0.0002,36905.0,36902.0,0.067735]
[1643845168361,0.2986678,36907.0,36899.0,0.503]
[1643845168563,0.0002,36900.0,36899.0,0.503]
[1643845169208,0.0002,36900.0,36899.0,0.58537113]
[1643845170209,0.0002,36900.0,36895.0,0.0008727]
[1643845170409,0.0002,36896.0,36895.0,0.0008727]
[1643845170809,0.0002,36896.0,36895.0,0.00078248]
[1643845171011,0.0002,36896.0,36895.0,0.75339408]
[1643845171213,0.0002,36896.0,36895.0,0.25339408]
[1643845171510,0.00078232,36900.0,36895.0,0.30319408]
[1643845171711,0.00078232,36900.0,36895.0,0.2534843]
[1643845172012,0.00078232,36900.0,36898.0,0.0498]
[1643845172210,0.0002,36903.0,36898.0,0.0498]
[1643845172411,0.1217,36906.0,36897.0,0.135491]
[1643845172412,0.1217,36906.0,36902.0,0.44864821]
[1643845172669,0.46194529,36915.0,36902.0,0.09864821]
[1643845172670,0.0002,36905.0,36902.0,0.09864821]
[1643845172864,0.0002,36905.0,36904.0,0.0498]
[1643845173063,0.0002,36905.0,36903.0,0.135469]
[1643845173663,0.0002,36905.0,36902.0,0.09864821]
[1643845173865,0.0002,36903.0,36902.0,0.09864821]
[1643845175064,0.0002,36903.0,36898.0,9.022e-05]
[1643845175265,0.0002,36899.0,36897.0,9.022e-05]
[1643845175565,0.0542,36898.0,36897.0,9.022e-05]
[1643845175764,0.0542,36898.0,36895.0,0.13559022]
[1643845175966,0.0542,36898.0,36895.0,0.13637268]
[1643845176165,0.0002,36896.0,36895.0,0.13637268]
[1643845176431,0.0002,36896.0,36895.0,0.00078246]
[1643845177017,0.0002,36896.0,36894.0,0.87485369]
[1643845177218,0.26766685,36896.0,36894.0,0.87554593]
[1643845177418,0.0002,36896.0,36894.0,0.87554593]
[1643845177616,0.05,36895.0,36894.0,0.87554593]
[1643845177817,0.0005,36896.0,36894.0,0.87554593]
[1643845178217,0.0005,36896.0,36894.0,0.87476347]
[1643845178616,0.0008,36896.0,36894.0,0.87476347]
[1643845179219,0.0011,36896.0,36894.0,0.87476347]
[1643845179417,0.27434546,36896.0,36894.0,0.87476347]
[1643845179618,0.0011,36896.0,36894.0,0.94252147]
[1643845180018,0.0014,36896.0,36894.0,0.94252147]
[1643845180449,0.0012,36896.0,36894.0,0.94252147]
[1643845180650,0.0002,36895.0,36894.0,0.94252147]
[1643845181051,0.1207,36902.0,36894.0,0.94252147]
[1643845181054,0.11841589,36902.0,36897.0,0.067745]
[1643845181251,0.11841589,36902.0,36900.0,0.05]
[1643845181451,0.189696,36912.0,36900.0,0.05]
[1643845181656,0.26671706,36911.0,36898.0,0.40692048]
[1643845181855,0.24731467,36906.0,36898.0,0.05]
[1643845182057,0.24731467,36906.0,36896.0,9.022e-05]
[1643845182058,0.26671706,36905.0,36896.0,9.022e-05]
[1643845182253,0.0542,36905.0,36896.0,9.022e-05]
[1643845182452,0.0542,36905.0,36894.0,0.87476347]
[1643845182453,0.0003,36902.0,36894.0,0.87485369]
[1643845182654,0.0545,36902.0,36894.0,0.87485369]
[1643845182853,0.0545,36902.0,36896.0,0.23844906]
[1643845183055,0.0548,36902.0,36898.0,0.36695147]
[1643845183455,0.0551,36902.0,36896.0,0.23844906]
[1643845183654,0.0551,36902.0,36896.0,9.022e-05]
[1643845183922,0.0554,36902.0,36896.0,9.022e-05]
[1643845184117,0.0554,36902.0,36901.0,0.08634695]
[1643845184320,0.0557,36902.0,36901.0,0.08634695]
[1643845184717,0.0557,36902.0,36897.0,0.00033078]
[1643845184718,0.30414717,36902.0,36897.0,0.00033078]
[1643845184917,0.40414717,36902.0,36897.0,0.00033078]
[1643845185117,0.45414717,36902.0,36897.0,0.00033078]
[1643845185316,0.45444717,36902.0,36896.0,9.022e-05]
[1643845185518,0.23596833,36897.0,36894.0,0.87485369]
[1643845185716,0.28596833,36897.0,36894.0,0.87485369]
[1643845185919,0.35373833,36897.0,36895.0,0.08188566]
[1643845186121,0.28596833,36897.0,36895.0,0.08188566]
[1643845186921,0.28626833,36897.0,36895.0,0.08188566]
[1643845187320,0.28656833,36897.0,36895.0,0.08188566]
[1643845188054,0.28686833,36897.0,36895.0,0.08188566]
[1643845188850,0.23686833,36897.0,36895.0,0.08188566]
[1643845189252,0.23686833,36897.0,36895.0,0.04188566]
[1643845189454,0.23716833,36897.0,36895.0,0.04188566]
[1643845189653,0.29136833,36897.0,36895.0,0.04188566]
[1643845190051,0.29166833,36897.0,36895.0,0.04188566]
[1643845190652,0.28666833,36897.0,36895.0,0.04188566]
[1643845191054,0.28696833,36897.0,36895.0,0.04188566]
[1643845191510,0.0021,36897.0,36895.0,0.04188566]
[1643845192112,0.0024,36897.0,36895.0,0.04188566]
[1643845193315,0.0027,36897.0,36895.0,0.04188566]
[1643845193713,0.003,36897.0,36896.0,0.3050538]
[1643845194316,0.0033,36897.0,36896.0,0.3050538]
[1643845194518,0.0033,36897.0,36895.0,0.04197588]
[1643845194716,0.0033,36897.0,36895.0,0.04188566]
[1643845194717,0.0036,36897.0,36895.0,0.04188566]
[1643845195157,0.0039,36897.0,36895.0,0.04188566]
[1643845195857,0.0042,36897.0,36895.0,0.04188566]
[1643845196461,0.0045,36897.0,36895.0,0.04188566]
[1643845197163,0.0048,36897.0,36895.0,0.04188566]
[1643845197559,0.0051,36897.0,36895.0,0.04188566]
[1643845198164,0.0054,36897.0,36895.0,0.04188566]
[1643845198764,0.0057,36897.0,36895.0,0.04188566]
[1643845199003,0.0557,36897.0,36895.0,0.04188566]
[1643845199203,0.056,36897.0,36895.0,0.04188566]
[1643845199702,0.006,36897.0,36895.0,0.04188566]
[1643845199906,0.0063,36897.0,36895.0,0.04188566]
[1643845200504,0.0066,36897.0,36895.0,0.04188566]
[1643845200706,0.0066,36897.0,36894.0,0.87563673]
[1643845200907,0.0069,36897.0,36894.0,0.87485369]
[1643845201107,0.0069,36897.0,36894.0,0.87563673]
[1643845201511,0.0072,36897.0,36894.0,0.87563673]
[1643845202109,0.0072,36897.0,36896.0,0.08030356]
[1643845202308,0.31288639,36897.0,36896.0,0.08030356]
[1643845203164,0.31318639,36897.0,36896.0,0.08030356]
[1643845203766,0.31348639,36897.0,36896.0,0.08030356]
[1643845204364,0.0081,36897.0,36896.0,0.08030356]
[1643845204965,0.0084,36897.0,36896.0,0.08030356]
[1643845205566,0.0084,36897.0,36895.0,0.36087326]
[1643845205768,0.350564,36896.0,36895.0,0.36]
[1643845205965,0.350564,36896.0,36895.0,0.36078304]
[1643845205966,0.0542,36896.0,36895.0,0.36078304]
[1643845206166,0.1542,36896.0,36895.0,0.36078304]
[1643845206607,0.1542,36896.0,36895.0,0.43609879]
[1643845206907,0.1542,36896.0,36895.0,0.43531575]
[1643845207110,0.15311,36896.0,36895.0,0.43531575]
[1643845207310,0.05311,36896.0,36895.0,0.43531575]
[1643845207711,0.05311,36896.0,36895.0,0.36]
[1643845208510,0.65652476,36896.0,36895.0,0.36]
[1643845208709,0.75652476,36896.0,36895.0,0.36]
[1643845208909,0.603674,36896.0,36895.0,0.36]
[1643845210154,0.603674,36896.0,36895.0,0.35699]
[1643845210560,0.603674,36896.0,36895.0,0.35027]
[1643845210755,0.603674,36896.0,36895.0,0.34355]
[1643845211157,0.25311,36896.0,36895.0,0.34355]
[1643845211355,0.15311,36896.0,36895.0,0.34355]
[1643845211557,0.503674,36896.0,36895.0,0.34355]
[1643845211955,0.603674,36896.0,36895.0,0.34355]
[1643845212156,0.553674,36896.0,36895.0,0.34355]
[1643845212356,0.20311,36896.0,36895.0,0.34355]
[1643845213056,0.10311,36896.0,36895.0,0.34355]
[1643845213456,0.10287476,36896.0,36895.0,0.34355]
[1643845214504,0.15287476,36896.0,36895.0,0.34355]
[1643845215305,0.10287476,36896.0,36895.0,0.34355]
[1643845215908,0.0134,36897.0,36895.0,0.59566889]
[1643845216209,0.0134,36897.0,36895.0,0.34355]
[1643845217006,0.0134,36897.0,36896.0,0.45]
[1643845217207,0.0134,36897.0,36895.0,0.34364022]
[1643845217507,0.0134,36897.0,36895.0,0.41139822]
[1643845217752,0.0134,36897.0,36896.0,0.05]
[1643845217952,0.0134,36897.0,36895.0,0.411308]
[1643845218952,0.0134,36897.0,36895.0,0.461308]
[1643845219552,0.0137,36897.0,36895.0,0.461308]
[1643845220955,0.0137,36897.0,36895.0,0.411308]
[1643845221601,0.014,36897.0,36895.0,0.411308]
[1643845222001,0.0143,36897.0,36895.0,0.411308]
[1643845222401,0.0143,36897.0,36895.0,0.34355]
[1643845224504,0.0146,36897.0,36895.0,0.34355]
[1643845224905,0.0149,36897.0,36895.0,0.34355]
[1643845225658,0.0152,36897.0,36895.0,0.34355]
[1643845226257,0.0152,36897.0,36895.0,0.39355]
[1643845226659,0.0152,36897.0,36896.0,0.61819181]
[1643845226859,0.0152,36897.0,36896.0,0.35]
[1643845227058,0.0152,36897.0,36896.0,0.61410111]
[1643845227262,0.00318288,36902.0,36897.0,0.6]
[1643845227461,0.0024,36902.0,36901.0,0.05]
[1643845227758,0.00318289,36902.0,36901.0,0.69725093]
[1643845227959,0.00318289,36902.0,36901.0,0.76499493]
[1643845228162,0.010847,36904.0,36902.0,0.65]
[1643845228360,0.25147705,36910.0,36901.0,0.85947473]
[1643845228361,0.18373505,36910.0,36901.0,0.85947473]
[1643845228564,0.18373505,36910.0,36902.0,0.09613049]
[1643845228759,0.11288067,36912.0,36902.0,0.3363093]
[1643845229010,0.11288067,36912.0,36906.0,0.067731]
[1643845229011,0.00018067,36911.0,36906.0,0.067731]
[1643845229208,0.00018067,36911.0,36906.0,0.130881]
[1643845229411,0.00018067,36911.0,36907.0,0.29813929]
[1643845229607,0.1127,36912.0,36907.0,0.29813929]
[1643845229808,0.1127,36912.0,36908.0,0.0736579]
[1643845230009,0.01563214,36914.0,36913.0,0.29281766]
[1643845230211,0.01545147,36914.0,36913.0,0.29281766]
[1643845230410,0.01545147,36914.0,36911.0,0.067732]
[1643845230610,0.01545147,36914.0,36908.0,0.0736579]
[1643845230811,0.01563216,36914.0,36908.0,0.0736579]
[1643845231216,0.00045279,36913.0,36908.0,0.0736579]
[1643845231613,0.00063348,36913.0,36909.0,0.30635092]
[1643845231815,0.00063348,36913.0,36912.0,0.05]
[1643845232216,0.00018069,36916.0,36912.0,0.05]
[1643845232657,0.0007834,36914.0,36912.0,0.05]
[1643845233262,0.0007834,36914.0,36912.0,0.117725]
[1643845233458,0.00018069,36917.0,36912.0,0.117725]
[1643845233659,0.25080697,36918.0,36916.0,0.09976435]
[1643845233862,0.30080697,36918.0,36916.0,0.09976435]
[1643845234260,0.40080697,36918.0,36916.0,0.09976435]
[1643845234462,0.1508,36918.0,36916.0,0.09976435]
[1643845235061,0.0508,36918.0,36916.0,0.16748735]
[1643845235261,0.0508,36918.0,36917.0,0.05]
[1643845235262,0.0008,36918.0,36917.0,0.05]
[1643845235461,0.0008,36918.0,36917.0,0.23946937]
[1643845235663,0.0508,36918.0,36917.0,0.23946937]
[1643845236064,0.0508,36918.0,36916.0,0.06748735]
[1643845236263,0.0508,36918.0,36917.0,0.07963961]
[1643845237311,0.0508,36918.0,36916.0,0.06748735]
[1643845238415,0.07729209,36917.0,36914.0,0.067726]
[1643845238612,0.29600333,36916.0,36907.0,0.135464]
[1643845238814,0.05,36908.0,36901.0,0.3722]
[1643845239017,0.05,36903.0,36896.0,0.29141669]
[1643845239214,0.05,36903.0,36900.0,0.31120545]
[1643845239416,0.05,36903.0,36901.0,0.067749]
[1643845239613,0.05,36903.0,36902.0,0.07836668]
[1643845239815,0.05,36903.0,36899.0,0.00073068]
[1643845240263,0.05,36900.0,36899.0,0.00073068]
[1643845240464,0.00073059,36904.0,36899.0,0.00073068]
[1643845240465,0.05,36902.0,36899.0,0.00073068]
[1643845240663,0.05,36900.0,36898.0,0.135496]
[1643845240866,0.05,36900.0,36899.0,0.07350925]
[1643845243268,0.05,36900.0,36895.0,0.479055]
[1643845243269,0.28848159,36899.0,36898.0,0.00073426]
[1643845243666,0.33848159,36899.0,36898.0,0.00073426]
[1643845243906,0.05,36899.0,36898.0,0.00073426]
[1643845244110,0.1,36900.0,36898.0,0.00073426]
[1643845244308,0.05,36900.0,36897.0,0.08453097]
[1643845244508,0.05,36898.0,36897.0,0.15302101]
[1643845244808,0.0003,36899.0,36897.0,0.17233649]
[1643845245409,0.0003,36899.0,36897.0,0.17160245]
[1643845246114,0.0003,36899.0,36898.0,0.91057386]
[1643845246115,0.0006,36899.0,36898.0,0.91057386]
[1643845246712,0.0006,36899.0,36898.0,0.66057386]
[1643845246914,0.0006,36899.0,36898.0,0.82988934]
[1643845246915,0.0009,36899.0,36898.0,0.82988934]
[1643845247313,0.0003,36900.0,36898.0,0.82988934]
[1643845247515,0.0003,36900.0,36899.0,1.10040962]
[1643845247752,0.0003,36900.0,36899.0,1.30010962]
[1643845247958,0.0003,36900.0,36899.0,1.40010962]
[1643845248353,0.0003,36900.0,36899.0,1.39980962]
[1643845249157,0.0003,36900.0,36899.0,1.39950962]
[1643845249356,0.0003,36900.0,36899.0,1.77001606]
[1643845249756,0.0006,36900.0,36899.0,1.77001606]
[1643845249957,0.0005986,36904.0,36901.0,0.067728]
[1643845250157,0.0005986,36904.0,36903.0,0.73704348]
[1643845250357,0.00018069,36911.0,36903.0,1.04492987]
[1643845250558,0.00018069,36912.0,36907.0,0.01901548]
[1643845250757,0.00018069,36912.0,36911.0,0.31901548]
[1643845250958,0.00018069,36912.0,36911.0,0.41546946]
[1643845251157,0.00018069,36917.0,36911.0,0.67175571]
[1643845251420,0.00018069,36917.0,36916.0,0.01871548]
[1643845251616,0.00018069,36917.0,36916.0,0.66841548]
[1643845251819,0.0008,36918.0,36916.0,0.66841548]
[1643845252119,0.0008,36918.0,36917.0,0.74637941]
[1643845252314,0.0008,36918.0,36917.0,1.40381502]
[1643845252514,0.0008,36918.0,36917.0,1.45381502]
[1643845252913,0.0011,36918.0,36917.0,1.45381502]
[1643845253615,0.0004,36918.0,36917.0,1.45381502]
[1643845253815,0.0004,36918.0,36917.0,0.75381502]
[1643845254014,0.0007,36918.0,36917.0,0.73646593]
[1643845254214,0.0007,36918.0,36917.0,0.63646593]
[1643845254621,0.49536862,36934.0,36922.0,0.12833067]
[1643845254622,0.03158452,36930.0,36922.0,0.12833067]
[1643845254919,0.26973935,36931.0,36930.0,0.07538761]
[1643845255559,0.26973935,36931.0,36929.0,0.28642136]
[1643845255560,0.30902608,36930.0,36929.0,0.13564615]
[1643845255857,0.30902608,36930.0,36929.0,0.22201479]
[1643845256459,0.26973935,36931.0,36929.0,0.08636864]
[1643845256859,0.05,36930.0,36929.0,0.08636864]
[1643845257461,0.66070261,36930.0,36924.0,0.15881348]
[1643845257663,0.02658452,36925.0,36924.0,0.135398]
[1643845259115,0.02658452,36925.0,36924.0,0.15881348]
[1643845259315,0.02658452,36925.0,36924.0,0.135398]
[1643845259717,0.02658452,36925.0,36924.0,0.15881348]
[1643845260216,0.02688452,36925.0,36924.0,0.15881348]
[1643845260616,0.02688452,36925.0,36924.0,0.135398]
[1643845260818,0.02718452,36925.0,36924.0,0.135398]
[1643845262020,0.00078395,36926.0,36925.0,0.35]
[1643845262221,0.0012,36930.0,36925.0,0.27951899]
[1643845262421,0.0512,36930.0,36929.0,0.02341548]
[1643845262670,0.0012,36930.0,36929.0,0.02341548]
[1643845263065,0.0512,36930.0,36929.0,0.33933975]
[1643845263265,0.0012,36930.0,36929.0,0.33933975]
[1643845263465,0.0012,36930.0,36929.0,0.40703075]
[1643845264266,0.0012,36930.0,36929.0,0.33933975]
[1643845264465,0.02778452,36930.0,36929.0,0.33933975]
[1643845264664,0.0012,36930.0,36929.0,0.33903975]
[1643845265464,0.0015,36930.0,36929.0,0.33903975]
[1643845266068,0.0018,36930.0,36929.0,0.33903975]
[1643845266614,0.0021,36930.0,36929.0,0.33903975]
[1643845267015,0.02868452,36930.0,36929.0,0.33903975]
[1643845267218,0.0024,36930.0,36929.0,0.33903975]
[1643845267617,0.0027,36930.0,36929.0,0.33903975]
[1643845267814,0.02928452,36930.0,36929.0,0.33903975]
[1643845268016,0.02958452,36930.0,36929.0,0.31562427]
[1643845268216,0.02958452,36930.0,36929.0,0.07600315]
[1643845268618,0.02988452,36930.0,36929.0,0.07600315]
[1643845268819,0.02988452,36930.0,36925.0,0.135392]
[1643845269019,0.52658452,36926.0,36925.0,0.135392]
[1643845269221,0.02658452,36926.0,36922.0,0.4265286]
[1643845269419,0.32658452,36923.0,36922.0,0.4265286]
[1643845269619,0.02658452,36923.0,36922.0,0.4262286]
[1643845270168,0.02658452,36923.0,36922.0,0.135102]
[1643845270563,0.02688452,36923.0,36922.0,0.135102]
[1643845271163,0.02718452,36923.0,36922.0,0.135102]
[1643845271565,0.02718452,36923.0,36920.0,0.00078412]
[1643845271764,0.02718452,36923.0,36921.0,0.06771]
[1643845272564,0.02748452,36923.0,36921.0,0.06771]
[1643845272965,0.02658452,36922.0,36921.0,0.06771]